bitfinex-derivatives/quotes_SOLF0:USTF0_20250421
["timestamp","ask_amount","ask_price","bid_price","bid_amount"]
[1745210249940,26.14760977,140.1,140.08,7.18912766]
[1745210250851,26.14760977,140.1,140.08,7.18942766]
[1745210251650,31.80840467,140.1,140.08,0.05102766]
[1745210251847,31.80840467,140.1,140.04,5.6607949]
[1745210252150,31.7607949,140.1,140.04,5.6607949]
[1745210252451,38.8986949,140.1,140.06,7.1394]
[1745210252750,31.7607949,140.1,140.06,7.1394]
[1745210253050,7.18660051,140.09,140.07,0.05185068]
[1745210258656,5.6607949,140.08,140.02,7.1413]
[1745210258856,5.6607949,140.06,139.99,5.6607949]
[1745210259155,33.2202,140.05,139.99,5.6607949]
[1745210259553,26.08,140.05,140.0,5.6607949]
[1745210259754,12.84941993,140.04,140.01,0.05463991]
[1745210260055,5.70841993,140.04,140.01,7.19643991]
[1745210260857,12.84921993,140.04,140.01,7.19643991]
[1745210261267,5.70841993,140.04,140.01,7.19643991]
[1745210261459,5.70841993,140.04,140.02,7.1416]
[1745210261959,5.70841993,140.04,140.01,7.19663991]
[1745210262460,12.84911993,140.04,140.01,7.19663991]
[1745210262963,0.04762503,140.04,140.02,7.1416]
[1745210269668,0.04762503,140.04,140.03,7.1411]
[1745210271169,0.04762503,140.04,140.01,0.05463991]
[1745210271770,0.04762503,140.04,140.01,7.19643991]
[1745210272175,7.1426,140.01,139.97,7.1437]
[1745210272471,33.2426,140.01,139.97,7.1437]
[1745210273276,7.1427,140.0,139.98,0.04744273]
[1745210273473,5.6607949,139.99,139.98,0.04744273]
[1745210276580,5.6607949,139.99,139.98,7.19114273]
[1745210278190,5.6607949,139.99,139.98,0.04744273]
[1745210282073,0.04903999,140.0,139.98,7.19114273]
[1745210282279,0.04903999,140.0,139.98,0.04744273]
[1745210282574,0.04903999,140.0,139.98,7.19094273]
[1745210284380,0.04903999,140.0,139.99,7.1432]
[1745210284582,26.08,140.04,139.98,5.70823763]
[1745210284781,26.08,140.04,139.98,5.6607949]
[1745210284982,26.08,140.04,140.02,7.1415]
[1745210285782,26.1317434,140.04,140.02,7.19444825]
[1745210286585,26.1317434,140.04,140.03,7.1411]
[1745210287489,26.1317434,140.04,140.02,7.19434825]
[1745210288783,5.6607949,140.03,140.02,0.05294825]
[1745210289884,5.6607949,140.03,139.96,26.08]
[1745210290187,5.6607949,140.01,139.98,7.1434]
[1745210290987,12.84900069,140.01,139.98,7.19327859]
[1745210291888,12.84900069,140.01,139.98,0.04987859]
[1745210292092,5.6607949,139.99,139.98,0.04987859]
[1745210293992,5.6607949,139.99,139.98,7.19357859]
[1745210297995,5.6607949,139.99,139.98,0.04987859]
[1745210298695,5.6607949,139.99,139.98,7.19357859]
[1745210301098,12.84880069,140.01,139.98,7.19357859]
[1745210301399,5.70650069,140.01,139.98,7.19357859]
[1745210301599,5.70650069,140.01,139.99,7.1431]
[1745210301899,5.70650069,140.01,139.98,0.04987859]
[1745210302301,5.70650069,140.01,139.98,7.19327859]
[1745210303898,12.84870069,140.01,139.98,7.19327859]
[1745210304401,5.70650069,140.01,139.98,0.04987859]
[1745210304701,5.6607949,139.99,139.98,0.04987859]
[1745210305402,26.12570579,140.01,139.98,0.04987859]
[1745210305601,5.6607949,140.0,139.98,0.04987859]
[1745210306301,5.6607949,140.0,139.98,7.19347859]
[1745210307700,5.6607949,140.0,139.98,0.04987859]
[1745210307999,12.8034949,140.0,139.98,0.04987859]
[1745210316802,0.04570579,140.01,139.98,0.04987859]
[1745210316998,0.04570579,140.01,139.99,5.6607949]
[1745210318402,0.04570579,140.01,140.0,7.1427]
[1745210328914,5.79e-06,140.01,140.0,7.1427]
[1745210351444,5.79e-06,140.01,139.99,7.143]
[1745210351634,5.6607949,140.0,139.98,0.04987859]
[1745210352339,5.6607949,140.0,139.98,7.19327859]
[1745210355640,5.6607949,140.0,139.99,7.1432]
[1745210355945,5.6607949,140.0,139.98,0.04987859]
[1745210356243,5.6607949,140.0,139.98,7.19307859]
[1745210359645,5.6607949,140.0,139.99,7.1432]
[1745210360944,33.79400069,140.01,139.99,7.1432]
[1745210361140,33.79400069,140.01,140.0,7.1427]
[1745210362140,26.06000579,140.01,140.0,7.1427]
[1745210362345,5.79e-06,140.01,140.0,7.1427]
[1745210376449,5.79e-06,140.01,139.99,7.143]
[1745210376654,5.6607949,139.99,139.98,0.04987859]
[1745210376857,5.6607949,139.99,139.92,5.6607949]
[1745210377153,28.0016,140.0,139.91,26.04]
[1745210377154,5.6607949,139.97,139.96,7.1443]
[1745210377357,5.6607949,139.97,139.91,26.04]
[1745210377555,5.6607949,139.97,139.91,31.7007949]
[1745210378059,0.05272356,139.95,139.93,0.04505884]
[1745210379055,0.05272356,139.95,139.94,7.1456]
[1745210380254,5.71351846,139.95,139.94,7.1456]
[1745210380458,5.71351846,139.95,139.93,7.19115884]
[1745210380757,5.71351846,139.95,139.93,0.04505884]
[1745210381260,5.71351846,139.95,139.94,7.1457]
[1745210383856,0.05272356,139.95,139.94,7.1457]
[1745210391061,0.05272356,139.95,139.93,7.19105884]
[1745210391363,0.05272356,139.95,139.93,0.04505884]
[1745210391764,5.6607949,139.94,139.81,8.37950819]
[1745210391969,5.6607949,139.94,139.87,5.6607949]
[1745210392166,5.6607949,139.94,139.89,5.6607949]
[1745210392568,5.6607949,139.94,139.93,7.1462]
[1745210393067,5.6607949,139.94,139.92,7.19307114]
[1745210393365,5.6607949,139.94,139.92,0.04637114]
[1745210393867,12.8064949,139.94,139.92,0.04637114]
[1745210394766,5.6607949,139.94,139.92,0.04637114]
[1745210396466,12.8064949,139.94,139.92,0.04637114]
[1745210400062,5.6607949,139.94,139.92,0.04637114]
[1745210400268,5.6607949,139.94,139.92,7.19307114]
[1745210401768,5.6607949,139.94,139.92,0.04637114]
[1745210402268,12.8066949,139.94,139.92,0.04637114]
[1745210403568,7.1462,139.93,139.92,0.04637114]
[1745210405071,12.8067949,139.94,139.92,0.04637114]
[1745210405670,5.6607949,139.94,139.92,0.04637114]
[1745210406170,26.08559722,139.95,139.94,7.1457]
[1745210409174,0.04559722,139.95,139.94,12.8064949]
[1745210416772,9.722e-05,139.95,139.94,12.8064949]
[1745210417076,5.66089212,139.95,139.94,7.1457]
[1745210417275,31.70089212,139.95,139.94,7.1457]
[1745210417777,31.70089212,139.95,139.93,7.146]
[1745210417976,26.04009722,139.95,139.93,7.146]
[1745210418177,9.722e-05,139.95,139.94,7.1457]
[1745210419180,9.722e-05,139.95,139.93,7.1461]
[1745210420478,9.722e-05,139.95,139.94,7.1457]
[1745210420674,9.722e-05,139.95,139.92,0.04637114]
[1745210423277,9.722e-05,139.95,139.93,7.1459]
[1745210424179,9.722e-05,139.95,139.94,7.1457]
[1745210425584,9.722e-05,139.95,139.92,0.04637114]
[1745210426181,9.722e-05,139.95,139.93,7.1459]
[1745210429790,9.722e-05,139.95,139.92,7.19297114]
[1745210429994,5.66089212,139.95,139.92,7.19297114]
[1745210430192,26.02,139.94,139.92,0.04637114]
[1745210430496,27.9863,139.94,139.92,0.04637114]
[1745210430993,5.6607949,139.93,139.92,0.04637114]
[1745210434097,5.6607949,139.93,139.92,7.19307114]
[1745210434396,27.9863,139.94,139.92,7.19307114]
[1745210435502,27.9863,139.94,139.93,7.1462]
[1745210435799,27.9863,139.94,139.92,0.04637114]
[1745210436799,27.9863,139.94,139.92,7.19277114]
[1745210437295,27.9863,139.94,139.92,0.04637114]
[1745210437594,27.9863,139.94,139.92,7.19277114]
[1745210437794,27.9863,139.94,139.92,0.04637114]
[1745210438199,27.9863,139.94,139.93,7.1462]
[1745210438499,9.722e-05,139.95,139.93,5.6607949]
[1745210438900,9.722e-05,139.95,139.94,7.1457]
[1745210445798,9.722e-05,139.95,139.93,7.1461]
[1745210446004,9.722e-05,139.95,139.92,0.04637114]
[1745210447305,9.722e-05,139.95,139.93,7.1462]
[1745210454408,9.722e-05,139.95,139.92,7.19287114]
[1745210454800,9.722e-05,139.95,139.93,7.1462]
[1745210455507,9.722e-05,139.95,139.92,0.04637114]
[1745210455708,1.91589722,139.95,139.92,0.04637114]
[1745210456507,5.6607949,139.94,139.92,0.04637114]
[1745210456709,26.02,139.93,139.92,0.04637114]
[1745210457308,26.02,139.93,139.92,7.19307114]
[1745210459011,9.722e-05,139.95,139.92,0.04637114]
[1745210459210,9.722e-05,139.95,139.93,5.6607949]
[1745210459606,9.722e-05,139.95,139.94,7.1457]
[1745210459806,26.02009722,139.95,139.94,7.1457]
[1745210465710,31.68089212,139.95,139.93,7.146]
[1745210466112,31.68089212,139.95,139.92,0.04637114]
[1745210466412,31.68089212,139.95,139.93,7.146]
[1745210469116,26.02009722,139.95,139.94,7.1457]
[1745210475520,26.02009722,139.95,139.93,7.1462]
[1745210477615,31.68089212,139.95,139.92,7.19287114]
[1745210477918,31.68089212,139.95,139.92,0.04637114]
[1745210478923,31.68089212,139.95,139.93,7.1462]
[1745210480324,9.722e-05,139.95,139.94,7.1457]
[1745210480523,26.02009722,139.95,139.94,7.1457]
[1745210480718,26.02009722,139.95,139.92,0.04637114]
[1745210480915,26.02009722,139.95,139.93,7.1462]
[1745210482226,33.16539722,139.95,139.92,7.19287114]
[1745210483324,33.16539722,139.95,139.93,7.1462]
[1745210483325,26.02009722,139.95,139.93,7.1462]
[1745210486128,26.02009722,139.95,139.94,7.1457]
[1745210489723,9.722e-05,139.95,139.94,7.1457]
[1745210491231,9.722e-05,139.95,139.94,14.6929699]
[1745210508841,9.722e-05,139.95,139.94,20.3537648]
[1745210509047,26.02,139.98,139.97,7.1442]
[1745210509234,26.02,139.98,139.95,5.6607949]
[1745210509439,26.02,139.98,139.94,13.2080648]
[1745210509641,28.0731,139.98,139.94,13.2080648]
[1745210509943,28.0731,139.98,139.96,7.1446]
[1745210510145,0.04684677,139.97,139.96,7.1446]
[1745210530852,0.04684677,139.97,139.96,12.8053949]
[1745210531258,0.04684677,139.97,139.96,7.1446]
[1745210545467,26.0,140.01,140.0,7.1427]
[1745210549976,8.43048042,140.02,140.01,7.1422]
[1745210550974,14.09127532,140.02,139.99,0.05082355]
[1745210551365,8.43048042,140.02,139.99,0.05082355]
[1745210551874,8.43048042,140.02,140.0,7.1424]
[1745210552069,8.43048042,140.02,139.99,0.05082355]
[1745210552373,8.43048042,140.02,140.0,5.6607949]
[1745210552573,8.43048042,140.02,140.01,7.1422]
[1745210558072,8.43048042,140.02,139.99,0.05082355]
[1745210558374,12.8033949,140.01,139.99,0.05082355]
[1745210558676,14.7596949,140.01,139.97,7.1441]
[1745210558875,7.6170949,140.01,139.97,7.1441]
[1745210559076,5.6607949,139.99,139.96,7.1446]
[1745210559278,5.6607949,139.97,139.92,5.6607949]
[1745210559578,5.6607949,139.95,139.9,31.6407949]
[1745210559877,0.05414352,139.94,139.91,0.05163663]
[1745210560076,0.05414352,139.94,139.93,7.1462]
[1745210562077,5.6607949,139.98,139.96,7.1446]
[1745210562276,5.6607949,139.98,139.9,25.98]
[1745210562476,5.6607949,139.98,139.95,7.1447]
[1745210562776,5.6607949,139.98,139.92,5.6607949]
[1745210562976,5.6607949,139.98,139.96,7.1443]
[1745210563177,0.04689803,139.96,139.94,0.04981144]
[1745210563676,0.04689803,139.96,139.95,7.1452]
[1745210595407,9.803e-05,139.96,139.95,7.1452]
[1745210598606,1.9563,140.01,140.0,7.1427]
[1745210599810,8.42430692,140.02,140.01,7.1422]
[1745210605511,14.08510182,140.02,140.0,7.1425]
[1745210607016,14.08510182,140.02,140.01,7.1422]
[1745210609921,8.42430692,140.02,140.01,7.1422]
[1745210621030,8.42430692,140.02,139.99,0.04556275]
[1745210621031,8.42430692,140.02,140.0,7.1425]
[1745210625335,8.42430692,140.02,140.01,7.1422]
[1745210632536,8.42430692,140.02,140.01,12.8029949]
[1745210632751,25.94,140.06,140.05,7.1401]
[1745210633139,25.94,140.06,140.02,7.1413]
[1745210633438,5.6607949,140.04,140.02,7.1413]
[1745210633840,5.70967678,140.04,140.02,7.18868477]
[1745210634240,5.70967678,140.04,140.03,7.1411]
[1745210634432,0.04888188,140.04,140.03,7.1411]
[1745210640144,25.94,140.06,140.05,7.1401]
[1745210641545,25.98644832,140.07,140.06,7.1396]
[1745210647646,25.98644832,140.07,140.05,7.19316336]
[1745210649547,5.93990363,140.06,140.05,0.05326336]
[1745210649944,31.92635195,140.07,140.05,0.05326336]
[1745210650249,31.92635195,140.07,140.05,7.19336336]
[1745210651649,39.06555195,140.07,140.05,0.05326336]
[1745210652251,31.92635195,140.07,140.05,7.19326336]
[1745210653449,31.92635195,140.07,140.05,0.05326336]
[1745210653848,31.92635195,140.07,140.05,7.19336336]
[1745210654453,31.92635195,140.07,140.05,0.05326336]
[1745210655952,39.06555195,140.07,140.05,0.05326336]
[1745210656354,31.92635195,140.07,140.05,0.05326336]
[1745210656556,39.06545195,140.07,140.05,0.05326336]
[1745210657354,33.12554832,140.07,140.05,0.05326336]
[1745210657551,7.1396,140.06,140.05,0.05326336]
[1745210657753,5.93990363,140.06,139.99,5.93990363]
[1745210657951,5.93990363,140.06,139.94,3.9482]
[1745210657952,5.93990363,140.04,139.94,3.9482]
[1745210658152,39.00110363,140.03,140.0,7.1424]
[1745210658452,5.93990363,140.02,140.0,7.1424]
[1745210658749,5.93990363,140.02,140.0,7.19676659]
[1745210658950,5.99008294,140.02,140.0,7.19676659]
[1745210659353,0.05017931,140.02,140.01,7.1422]
[1745210660246,0.05017931,140.02,140.01,13.08210363]
[1745210669759,7.931e-05,140.02,140.01,13.08210363]
[1745210669964,25.92,140.16,140.01,43.07820363]
[1745210670265,25.92,140.16,140.13,5.93990363]
[1745210670664,25.92,140.16,140.14,7.1354]
[1745210670964,25.96784095,140.16,140.14,7.18785752]
[1745210671465,25.96784095,140.16,140.15,7.135]
[1745210672059,25.96784095,140.16,140.14,0.05245752]
[1745210672265,31.90774458,140.16,140.11,5.93990363]
[1745210672661,5.93990363,140.15,140.1,5.93990363]
[1745210673064,31.90774458,140.16,140.11,5.93990363]
[1745210673268,31.90774458,140.16,140.11,5.99101208]
[1745210673564,31.90774458,140.16,140.14,7.1352]
[1745210673764,5.93990363,140.15,140.14,7.1352]
[1745210675167,31.83990363,140.15,140.14,7.1352]
[1745210675569,25.9,140.15,140.14,7.1352]
[1745210678163,31.83990363,140.15,140.11,0.05110845]
[1745210678368,5.93990363,140.13,140.11,0.05110845]
[1745210678669,5.93990363,140.14,140.11,0.05110845]
[1745210678968,31.83990363,140.15,140.11,0.05110845]
[1745210679262,31.83990363,140.15,140.12,7.1365]
[1745210679263,5.93990363,140.14,140.12,7.1365]
[1745210679468,5.93990363,140.14,140.11,0.05110845]
[1745210679967,5.93990363,140.12,140.06,5.93990363]
[1745210680167,5.93990363,140.1,140.06,5.93990363]
[1745210680358,2.0074,140.17,140.02,25.9]
[1745210680359,5.93990363,140.08,140.04,5.93990363]
[1745210680559,5.93990363,140.07,140.02,31.83990363]
[1745210680761,5.93990363,140.07,140.02,5.93990363]
[1745210680963,5.93990363,140.07,140.06,7.1396]
[1745210682269,0.04538706,140.08,140.07,7.1391]
[1745210688074,0.04538706,140.08,140.06,7.1862299]
[1745210688279,0.04538706,140.08,140.06,0.0466299]
[1745210689375,0.04538706,140.08,140.07,7.1391]
[1745210691976,5.98529069,140.08,140.07,7.1391]
[1745210692676,0.04538706,140.08,140.07,7.1391]
[1745210710684,0.04538706,140.08,140.06,7.1859299]
[1745210710889,5.98263918,140.08,140.06,7.1859299]
[1745210712182,7.85493918,140.08,140.06,7.1859299]
[1745210712378,5.93725212,140.07,140.06,7.1859299]
[1745210713493,7.85493918,140.08,140.06,7.1859299]
[1745210715293,5.93725212,140.07,140.06,7.1859299]
[1745210715589,3.83488706,140.08,140.06,0.0466299]
[1745210715782,9.77213918,140.08,140.06,0.0466299]
[1745210716291,9.77213918,140.08,140.06,7.1859299]
[1745210720494,9.77213918,140.08,140.06,0.0466299]
[1745210721095,9.77213918,140.08,140.06,7.1860299]
[1745210727998,7.85493918,140.08,140.06,7.1860299]
[1745210730304,7.85493918,140.08,139.94,361.0]
[1745210730504,5.93725212,140.05,140.0,5.93725212]
[1745210730696,25.9,140.04,139.95,25.9]
[1745210730994,25.9,140.04,140.01,5.93725212]
[1745210731305,25.9,140.04,140.02,7.1416]
[1745210731504,25.94566631,140.04,140.02,7.1416]
[1745210733408,25.94566631,140.04,140.03,7.1411]
[1745210733808,0.04566631,140.04,140.03,7.1411]
[1745210735820,25.88,140.08,140.07,7.1386]
[1745210738418,25.88,140.08,140.06,0.04849936]
[1745210739011,25.88,140.08,140.06,7.18779936]
[1745210740021,25.88,140.08,140.07,7.1391]
[1745210755426,0.04917861,140.09,140.08,7.1386]
[1745210755627,0.04917861,140.09,140.08,13.07585212]
[1745210762328,7.861e-05,140.09,140.08,13.07585212]
[1745210767129,25.88,140.14,140.13,7.136]
[1745210768636,25.88,140.14,140.12,7.184284]
[1745210771338,25.88,140.14,140.13,7.136]
[1745210774936,25.88,140.14,140.13,13.07325212]
[1745210776139,0.05031862,140.15,140.14,7.1355]
[1745210776542,27.8491,140.2,140.13,5.93725212]
[1745210776736,27.8491,140.2,140.16,5.93725212]
[1745210776943,25.86,140.2,140.18,5.93725212]
[1745210777238,25.86,140.23,140.2,7.1325]
[1745210777438,5.93725212,140.22,140.18,5.93725212]
[1745210777839,5.98681719,140.22,140.19,7.18344954]
[1745210778644,5.93725212,140.2,140.09,565.24]
[1745210778844,5.93725212,140.18,140.09,591.1]
[1745210779044,5.93725212,140.18,140.13,5.93725212]
[1745210779642,5.93725212,140.16,140.1,5.93725212]
[1745210779939,27.2974,140.21,140.08,1.885]
[1745210779940,5.93725212,140.14,140.09,5.93725212]
[1745210780145,31.79725212,140.14,140.12,0.04880745]
[1745210780345,0.05240202,140.13,140.12,0.04880745]
[1745210781245,0.05240202,140.13,140.12,7.18530745]
[1745210790055,2.02e-06,140.13,140.12,7.18530745]
[1745210795063,2.02e-06,140.13,140.12,13.12255957]
[1745210798664,596.99725212,140.2,140.18,7.1334]
[1745210799865,597.04718062,140.2,140.18,7.18596381]
[1745210801167,25.9099285,140.2,140.19,7.133]
[1745210803963,0.0499285,140.2,140.19,7.133]
[1745210805968,31.77725212,140.22,140.2,7.1321]
[1745210806267,25.84,140.22,140.2,7.1321]
[1745210807066,25.89204177,140.22,140.2,7.1321]
[1745210808469,25.89204177,140.22,140.19,7.1328]
[1745210810266,25.89204177,140.22,140.2,7.1325]
[1745210810969,25.89204177,140.22,140.21,7.132]
[1745210811176,25.89204177,140.22,140.18,5.98981593]
[1745210811473,25.89204177,140.22,140.2,7.1321]
[1745210815476,25.89204177,140.22,140.21,7.132]
[1745210815668,0.05204177,140.22,140.21,7.132]
[1745210816376,25.84,140.25,140.24,7.1304]
[1745210817081,25.84,140.25,140.23,7.1307]
[1745210817678,25.89256721,140.25,140.23,7.18441473]
[1745210821381,25.89256721,140.25,140.24,7.1304]
[1745210822182,25.89256721,140.25,140.23,7.18441473]
[1745210822980,25.89256721,140.25,140.24,7.1304]
[1745210826487,25.89256721,140.25,140.23,7.18451473]
[1745210826682,25.89256721,140.25,140.23,0.05371473]
[1745210827088,33.02276721,140.25,140.23,0.05371473]
[1745210828788,25.89256721,140.25,140.23,7.18461473]
[1745210830183,25.89256721,140.25,140.23,0.05371473]
[1745210830487,25.89256721,140.25,140.24,7.1304]
[1745210831590,5.93725212,140.33,140.23,0.05371473]
[1745210831788,5.93725212,140.31,140.26,5.93725212]
[1745210831989,5.93725212,140.31,140.28,7.128]
[1745210832592,5.93725212,140.29,140.2,5.8852]
[1745210832890,5.93725212,140.27,140.21,5.93725212]
[1745210833291,27.8333,140.28,140.26,7.1294]
[1745210833893,5.93725212,140.27,140.26,0.04759493]
[1745210834395,5.93725212,140.27,140.26,7.17699493]
[1745210835289,27.88435442,140.28,140.27,7.1289]
[1745210835994,2.06435442,140.28,140.27,7.1289]
[1745210836392,0.05105442,140.28,140.27,7.1289]
[1745210839598,0.05105442,140.28,140.27,13.06615212]
[1745210842100,0.05105442,140.28,140.27,7.1289]
[1745210845301,0.05105442,140.28,140.27,13.06615212]
[1745210848404,25.82,140.34,140.27,5.93725212]
[1745210848707,25.82,140.34,140.3,5.93725212]
[1745210849704,0.04819576,140.33,140.31,0.04503074]
[1745210849905,0.04819576,140.33,140.31,5.98228286]
[1745210850506,0.04819576,140.33,140.32,7.1264]
[1745210852605,0.04819576,140.33,140.31,0.04503074]
[1745210852810,5.93725212,140.4,140.31,46.86503074]
[1745210853102,7.1228,140.4,140.34,5.93725212]
[1745210853410,31.75725212,140.39,140.34,5.93725212]
[1745210853808,0.05412873,140.38,140.35,0.04931028]
[1745210854204,5.93725212,140.37,140.35,0.04931028]
[1745210857913,13.06115212,140.37,140.33,7.1257]
[1745210858115,5.93725212,140.35,140.33,7.1257]
[1745210858309,5.93725212,140.34,140.33,7.1257]
[1745210859012,25.82,140.35,140.33,7.1257]
[1745210859220,25.86935885,140.35,140.33,7.1257]
[1745210859413,25.86935885,140.35,140.34,7.1254]
[1745210859618,25.86935885,140.35,140.32,0.05459264]
[1745210859821,31.80661097,140.35,140.33,7.1255]
[1745210861317,0.04935885,140.35,140.34,7.1254]
[1745210861516,0.04935885,140.35,140.34,13.06265212]
[1745210861717,0.04935885,140.35,140.34,7.1254]
[1745210870524,0.04935885,140.35,140.33,7.1257]
[1745210870724,26.02935885,140.35,140.33,7.1257]
[1745210871528,26.02935885,140.35,140.32,13.11804476]
[1745210871728,31.96661097,140.35,140.32,0.05459264]
[1745210873131,26.02935885,140.35,140.32,0.05459264]
[1745210873328,26.02935885,140.35,140.33,7.1258]
[1745210876639,0.04935885,140.35,140.34,13.06265212]
[1745210880632,26.02935885,140.35,140.34,7.1254]
[1745210883546,5.885e-05,140.35,140.34,13.06265212]
[1745210884842,564.5,140.41,140.34,13.06265212]
[1745210884843,67.63869204,140.51,140.34,421.42725212]
[1745210885049,67.63869204,140.51,140.35,5.27825994]
[1745210885248,67.63869204,140.51,140.35,3.9825]
[1745210885547,67.63869204,140.51,140.36,14.2487]
[1745210885743,51.34450951,140.51,140.36,14.2487]
[1745210885943,51.34450951,140.51,140.49,7.1178]
[1745210886140,101.3748078,140.53,140.45,25.98]
[1745210886443,0.05465678,140.51,140.5,7.1169]
[1745210888448,26.03465678,140.51,140.5,7.1169]
[1745210888749,26.03465678,140.51,140.49,7.16271078]
[1745210890051,26.68,140.56,140.49,0.04511078]
[1745210890249,28.6353,140.56,140.49,0.04511078]
[1745210890747,566.1919,140.58,140.49,0.04511078]
[1745210890950,26.68,140.58,140.5,7.70802739]
[1745210891246,0.04794208,140.55,140.53,0.05004863]
[1745210891452,26.68,140.54,140.53,7.1156]
[1745210891644,26.68,140.54,140.53,7.16936831]
[1745210894055,26.68,140.54,140.53,0.05376831]
[1745210897353,26.68,140.54,140.52,7.1161]
[1745210897354,26.68,140.54,140.45,26.68]
[1745210897550,26.68,140.54,140.46,7.68385384]
[1745210897750,26.68,140.54,140.42,26.68]
[1745210897950,33.7956,140.54,140.49,7.1174]
[1745210898650,0.0521688,140.53,140.5,0.04911631]
[1745210898856,0.0521688,140.53,140.5,7.16631631]
[1745210899054,0.0521688,140.53,140.5,0.04911631]
[1745210899257,7.1679688,140.53,140.5,0.04911631]
[1745210899855,0.0521688,140.53,140.48,7.1178]
[1745210900255,0.0521688,140.53,140.43,9.22234109]
[1745210900256,9.27450989,140.53,140.43,9.22234109]
[1745210900550,9.22234109,140.53,140.48,7.1179]
[1745210900754,9.22234109,140.53,140.43,9.22234109]
[1745210900955,0.049823,140.52,140.49,0.04513095]
[1745210901451,0.049823,140.52,140.49,7.16283095]
[1745210902958,7.166223,140.52,140.49,0.04513095]
[1745210903258,0.049823,140.52,140.49,0.04513095]
[1745210903657,0.049823,140.52,140.49,7.16283095]
[1745210908259,361.0,140.67,140.57,7.1137]
[1745210908562,361.0,140.67,140.49,35.88234109]
[1745210908563,9.22234109,140.6,140.49,35.88234109]
[1745210908758,26.66,140.59,140.56,7.1139]
[1745210908963,26.66,140.58,140.56,7.1139]
[1745210909162,26.66,140.58,140.49,35.88234109]
[1745210909461,0.04719085,140.55,140.52,0.0530998]
[1745210910469,0.04719085,140.55,140.54,7.1152]
[1745210913462,5.94380797,140.55,140.54,7.1152]
[1745210919771,0.04719085,140.55,140.54,7.1152]
[1745210922277,0.04719085,140.55,140.53,7.1155]
[1745210922572,33.05661712,140.54,140.52,0.0530998]
[1745210922773,5.89661712,140.53,140.47,5.89661712]
[1745210922977,5.89661712,140.52,140.48,7.71998092]
[1745210923173,5.89661712,140.52,140.49,7.71998092]
[1745210923375,5.89661712,140.52,140.5,7.71998092]
[1745210923675,5.89661712,140.52,140.47,5.89661712]
[1745210923876,5.94889277,140.52,140.5,0.05243687]
[1745210924073,5.94889277,140.52,140.5,7.16913687]
[1745210924269,563.76,140.61,140.51,13.41051474]
[1745210924475,5.89661712,140.57,140.52,13.41051474]
[1745210924774,27.16,140.56,140.53,7.51389762]
[1745210925067,27.16,140.56,140.54,7.51389762]
[1745210925273,27.16,140.56,140.53,5.89661712]
[1745210925472,27.21434226,140.56,140.54,7.56165468]
[1745210925672,27.21434226,140.56,140.55,7.1147]
[1745210926669,33.11095938,140.56,140.54,0.04727014]
[1745210927273,33.11095938,140.56,140.54,7.16247014]
[1745210929174,33.11095938,140.56,140.55,7.55337551]
[1745210929573,33.11095938,140.56,140.55,7.55334975]
[1745210930979,27.21434226,140.56,140.55,14.66804975]
[1745210932581,0.05434226,140.56,140.55,14.66804975]
[1745210933379,0.05434226,140.56,140.55,14.6672155]
[1745210938778,0.05434226,140.56,140.55,7.1147]
[1745210938982,0.05434226,140.56,140.55,14.66143813]
[1745210941879,0.05434226,140.56,140.55,7.1147]
[1745210942083,0.05434226,140.56,140.55,14.65977537]
[1745210942282,0.05434226,140.56,140.54,0.04727014]
[1745210942479,5.89661712,140.55,140.54,0.04727014]
[1745210942784,5.89661712,140.55,140.54,7.59501579]
[1745210943283,5.89661712,140.55,140.54,7.59597189]
[1745210945679,5.89661712,140.55,140.54,7.59951656]
[1745210947587,13.06515938,140.56,140.54,7.59951656]
[1745210947790,13.06515938,140.56,140.54,0.04727014]
[1745210949183,13.06515938,140.56,140.55,7.56099056]
[1745210949485,13.06515938,140.56,140.54,0.04727014]
[1745210949987,13.06515938,140.56,140.55,7.56143176]
[1745210951988,13.06515938,140.56,140.54,0.04727014]
[1745210952487,0.05434226,140.56,140.54,0.04727014]
[1745210952994,5.95095938,140.56,140.54,0.04727014]
[1745210954292,13.06555938,140.56,140.54,0.04727014]
[1745210954691,5.95095938,140.56,140.54,0.04727014]
[1745210956894,5.95095938,140.56,140.54,7.16217014]
[1745210957191,0.05434226,140.56,140.54,7.16217014]
[1745210958591,5.95095938,140.56,140.54,7.16217014]
[1745210959689,13.06525938,140.56,140.54,0.04727014]
[1745210959994,5.95095938,140.56,140.54,0.04727014]
[1745210961098,5.95095938,140.56,140.54,7.16247014]
[1745210961487,13.06525938,140.56,140.54,0.04727014]
[1745210961994,0.05434226,140.56,140.54,5.94388726]
[1745210962495,0.05434226,140.56,140.55,7.1147]
[1745210963287,32.53095938,140.56,140.54,0.04727014]